Cogmind - Beta 16 @@@ ROGUE MODE // 2025.11.16 @ 20:32:58 Player: shapeshifter Result: Destroyed by Y-45 Defender with Heavy Assault Rifle Performance ------------- Evolutions (0) 0 Regions Visited (3) 600 Robots Destroyed (30) 150 Value Destroyed (886) 886 Prototype IDs (12) 240 Alien Tech Used (0) 0 Bonus (0) 0 TOTAL SCORE: 1876 Bonus ------- None Cogmind --------- Core Integrity 0/250 Matter 215/300 Energy 168/170 System Corruption 0% Temperature Cool (79) Movement Rolling (105) Ox1 Location -9/Recycling Parts ------- > --- POWER (1) -------- Makeshift Power Source > --- PROPULSION (2) --- Wheel Compact Wheel > --- UTILITY (2) ------ Large Storage Unit Makeshift Light Armor Plating > --- WEAPON (2) ------- Barrage Gun Barrage Gun > --- INVENTORY (15) --- Makeshift Power Source Subdweller Monowheel Scrap Shield Subdweller Laser Subdweller Beam Cannon Subdweller Beam Cannon Powered Cannon Subdweller Machine Gun Subdweller Machine Gun Battle Cannon Subdweller Shrapnel Launcher Multitool Multitool Peak State ------------ > --- POWER ------------ Makeshift Power Source > --- PROPULSION ------- Subdweller Monowheel Subdweller Monowheel > --- UTILITY ---------- Large Storage Unit Makeshift Light Armor Plating > --- WEAPON ----------- Barrage Gun Barrage Gun > --- INVENTORY -------- Makeshift Power Source Subdweller Monowheel Subdweller Laser Subdweller Beam Cannon Subdweller Beam Cannon Powered Cannon Heavy Assault Rifle Subdweller Machine Gun Subdweller Machine Gun Battle Cannon Subdweller Shrapnel Launcher Multitool Multitool [Rating: 23] Favorites ----------- Power Ion Engine Engine Ion Engine Propulsion Light Treads Treads Light Treads Wheel Subdweller Monowheel Utility Large Storage Unit Device Seismic Detector Storage Large Storage Unit Protection Makeshift Light Armor Plating Weapon Heavy Assault Rifle Energy Gun Medium Laser Ballistic Gun Heavy Assault Rifle Ballistic Cannon Battle Cannon Build | -11 -10 -10 -9 ------- Run | Yrd Mat Sub Rec Slots Evolved . | . . . . Power . | . . . . Propulsion . | . . . . Utility . | . . . . Weapon . | . . . . Parts Attached 32 | 7 4 21 . Power 5 | 1 . 4 . Engine 5 | 1 . 4 . Core . | . . . . Reactor . | . . . . Propulsion 10 | 2 . 8 . Treads 3 | 2 . 1 . Leg . | . . . . Wheel 7 | . . 7 . Hover . | . . . . Flight . | . . . . Utility 6 | 2 1 3 . Device 2 | 1 . 1 . Storage 2 | 1 1 . . Processor . | . . . . Hackware . | . . . . Protection 2 | . . 2 . Artifact . | . . . . Weapon 11 | 2 3 6 . Energy Gun 1 | . 1 . . Energy Cannon . | . . . . Ballistic Gun 8 | 2 2 4 . Ballistic Cannon 2 | . . 2 . Launcher . | . . . . Special Weapon . | . . . . Impact Weapon . | . . . . Slashing Weapon . | . . . . Piercing Weapon . | . . . . Special Melee Weapon . | . . . . Unidentified Prototypes . | . . . . Parts Lost 7 | . . 7 . Power 1 | . . 1 . Propulsion 3 | . . 3 . Utility 1 | . . 1 . Weapon 2 | . . 2 . Highest Loss Streak 3 | . . 3 . To Critical Strikes . | . . . . Average Backups 10 | 3 6 12 13 Power . | . 1 . 1 Propulsion 2 | 1 2 2 1 Utility 1 | . . 1 1 Weapon 5 | . 2 6 8 Tool/Special . | . . . . Unused Backups 13 | . . 3 10 Power . | . . . . Propulsion . | . . . . Utility 2 | . . 1 1 Weapon 9 | . . 2 7 Tool/Special 2 | . . . 2 Average Slot Usage (%) 99 | . 99 99 100 Engine 13 | . 14 13 14 Treads 20 | . 28 18 . Wheel 7 | . . 9 28 Device 8 | . 14 7 . Storage 14 | . 14 14 14 Protection 4 | . . 5 14 Ballistic Gun 26 | . 23 26 28 Ballistic Cannon 1 | . . 1 . Peak Build Rating 23 | 7 10 23 21 Average Rating 13 | 5 8 15 21 On Entrance 9 | . 7 10 21 Avg Prop Armor Cover (%) . | . . . . Naked Turns . | . . . . Heaviest Build 34 | 14 32 34 34 Greatest Support 40 | 40 40 40 26 Greatest Overweight (x) 1 | . . 1 1 Average Overweight (x) . | . . . 1 Largest Inventory Capacity 15 | 8 15 15 15 Average Capacity 14 | 7 12 15 15 Most Carried 15 | 6 10 15 15 Average Carried 11 | 3 6 13 15 Final Capacity 15 | 8 15 15 15 Final Carried 15 | 4 8 15 15 Class Distribution -------------------- 82% | Mutant 17% | Derelict-Mutant Dominant Class ---------------- Mutant | -10/Materials Mutant | -10/Subcaves Derelict-Mutant | -9/Recycling Resources | -11 -10 -10 -9 ----------- Run | Yrd Mat Sub Rec Matter Collected 1623 | 240 89 1294 . Remotely 113 | . . 113 . Salvage Created 1093 | 27 179 887 . Parts 73 | 4 11 58 . Haulers Intercepted . | . . . . Recyclers Shooed 1 | 1 . . . Parts Field Recycled . | . . . . Retrieved Matter . | . . . . Parts Self-Destructed 27 | . . 27 . Prevented . | . . . . Parts Restored . | . . . . Kills | -11 -10 -10 -9 ------- Run | Yrd Mat Sub Rec Combat Hostiles Destroyed 26 | . 4 22 . Guns 26 | . 4 22 . Classes Destroyed 6 | 1 1 4 . Tunneler 2 | 2 . . . Turret 2 | . . 2 . Swarmer 7 | . . 7 . Grunt 6 | . 4 2 . Sentry 1 | . . 1 . Subdweller 12 | . . 12 . Best Kill Streak 4 | 1 2 4 . Combat Bots Only 4 | . 2 4 . Max Kills in Single Turn 1 | 1 1 1 . Gunslinging . | . . . . Exploded . | . . . . Melee . | . . . . Uniques/NPCs Destroyed . | . . . . Combat | -11 -10 -10 -9 -------- Run | Yrd Mat Sub Rec Hostile Shots Fired 173 | . 14 153 6 Missed 52 | . 5 47 . Hits 121 | . 9 106 6 Projectile 121 | . 9 106 6 AOE 2 | . . 2 . Critical Strikes 1 | . . 1 . Damage Taken 1722 | . 117 1513 92 Core 251 | . 25 194 32 Absorbed by Shields . | . . . . Core Remaining (%) 100 | 100 . . . Volleys Fired 184 | 11 11 159 3 Largest 2 | 2 2 2 2 Hottest 70 | 40 70 61 56 Shots Fired 335 | 22 22 285 6 Gun 300 | 22 22 250 6 Cannon 35 | . . 35 . Launcher . | . . . . Special . | . . . . Kinetic 328 | 22 15 285 6 Thermal 7 | . 7 . . Explosive . | . . . . Electromagnetic . | . . . . Robot Hit Streak 20 | 8 9 20 3 Robot Miss Streak 4 | 2 2 4 1 Penetration Max . | . . . . Secondary Targets 4 | . . 4 . Max Gunslinging Chain 1 | . . 1 . Shots Hit Robots 159 | 15 14 125 5 Core Hits 59 | 5 9 45 . Critical Kills . | . . . . Critical Parts Destroyed 1 | 1 . . . Critical Strikes 5 | 1 1 3 . Burn 1 | . 1 . . Destroy 2 | 1 . 1 . Blast 2 | . . 2 . Melee Attacks . | . . . . Impact . | . . . . Slashing . | . . . . Piercing . | . . . . Sneak Attacks . | . . . . Combat Hostiles . | . . . . Follow-up Attacks . | . . . . Damage Inflicted 2402 | 154 164 1982 102 Guns 2339 | 154 164 1919 102 Cannons 63 | . . 63 . Explosions . | . . . . Melee . | . . . . Ramming . | . . . . Kinetic 2350 | 154 112 1982 102 Thermal 52 | . 52 . . Explosive . | . . . . Electromagnetic . | . . . . Impact . | . . . . Slashing . | . . . . Piercing . | . . . . Highest Corruption . | . . . . Average Corruption . | . . . . Corruption Purged . | . . . . Corruption Blocked . | . . . . Overload Shots . | . . . . Overflow Damage . | . . . . Projectiles . | . . . . Explosions . | . . . . Melee . | . . . . Knockbacks . | . . . . Impact . | . . . . Kinetic . | . . . . Secondary . | . . . . Self-Inflicted Damage . | . . . . Shots . | . . . . Rammed . | . . . . Targets Rammed . | . . . . Kicked . | . . . . Crushed . | . . . . Highest Temperature 80 | . 72 12 80 Average Temperature 30 | . 29 4 53 Received Heat Transfer 438 | . 66 345 27 Siege Activations . | . . . . Martial Activations . | . . . . Shielding Activations . | . . . . Robots Disrupted . | . . . . Combat Hostiles . | . . . . Robots Corrupted . | . . . . Combat Hostiles . | . . . . Parts Fried . | . . . . Impact Corruptions . | . . . . Robots Melted . | . . . . Combat Hostiles . | . . . . Parts Melted 1 | . 1 . . Heat Transferred 222 | . 222 . . Parts Sabotaged . | . . . . Parts Stolen . | . . . . Parts Stripped . | . . . . Power Chain Reactions . | . . . . Alert | -11 -10 -10 -9 ------- Run | Yrd Mat Sub Rec Maximum Alert Level . | . . . . Low Security (%) 100 | 100 100 . 100 Level 1 . | . . . . Level 2 . | . . . . Level 3 . | . . . . Level 4 . | . . . . Level 5 . | . . . . High Security . | . . . . Max Security . | . . . . Peak Influence 60 | 5 60 . 50 Initial 50 | . . . 50 Average 10 | . 11 . 47 Influence Increases 515 | 10 120 385 . Destroy 0b10 Robot/C 320 | . 80 240 . Destroy 0b10 Robot/NC 10 | 10 . . . Destroy Leader 20 | . 10 10 . Lose Combat Pursuer 165 | . 30 135 . Influence Decreases 475 | 10 120 280 65 Entered New Map 55 | . . . 55 Time Decay 360 | 10 120 220 10 Lost Part 60 | . . 60 . Squads Dispatched . | . . . . Investigation . | . . . . Extermination . | . . . . Reinforcement . | . . . . Assault . | . . . . Garrison . | . . . . Intercept . | . . . . Searches Triggered . | . . . . Construction Impeded . | . . . . Haulers Reinforced . | . . . . Active Scanning Responses . | . . . . Cargo Convoy Interrupts . | . . . . Stealth | -11 -10 -10 -9 --------- Run | Yrd Mat Sub Rec Distress Signals 1 | . 1 . . Communications Jammed . | . . . . Distress Signals . | . . . . Times Spotted 37 | . 5 31 1 Peak Tracking Total 6 | . 3 6 1 Tactical Retreats 5 | . 1 4 . Traps | -11 -10 -10 -9 ------- Run | Yrd Mat Sub Rec Traps Triggered 3 | . . 3 . Indirectly . | . . . . Trap Hack Attempts . | . . . . Triggered . | . . . . Disarmed . | . . . . Reprogrammed . | . . . . Reused . | . . . . Traps Extracted . | . . . . Installed . | . . . . Triggered . | . . . . Machines | -11 -10 -10 -9 ---------- Run | Yrd Mat Sub Rec Machines Disabled 3 | . . 3 . Max in Single Turn 1 | . . 1 . Machines Repaired . | . . . . Machines Dismantled . | . . . . Machines Sabotaged . | . . . . Overloaded Fab Kills . | . . . . Hacking | -11 -10 -10 -9 --------- Run | Yrd Mat Sub Rec Machines Accessed 4 | . 2 1 1 Terminals 3 | . 2 . 1 Fabricators . | . . . . Repair Stations . | . . . . Recycling Units . | . . . . Scanalyzers . | . . . . Garrison Access . | . . . . Total Hacks 6 | . 3 1 2 Successful 3 | . 1 1 1 Failed 3 | . 2 . 1 Catastrophic . | . . . . Database Lockouts . | . . . . Manual 4 | . 3 . 1 Terminals 5 | . 3 . 2 Fabricators . | . . . . Repair Stations . | . . . . Recycling Units . | . . . . Scanalyzers . | . . . . Garrison Access . | . . . . Terminal Hacks 2 | . 1 1 . Zone Layout 1 | . 1 . . Proto ID Catalog 1 | . . 1 . Fabricator Hacks . | . . . . Repair Station Hacks . | . . . . Recycling Unit Hacks . | . . . . Scanalyzer . | . . . . Garrison Access Hacks . | . . . . Unauthorized Hacks 1 | . . . 1 Terminals 1 | . . . 1 Skim 1 | . . . 1 Fabricators . | . . . . Repair Stations . | . . . . Recycling Units . | . . . . Scanalyzers . | . . . . Garrison Access . | . . . . Data Cores Recovered . | . . . . Used . | . . . . Hacking Detections 3 | . 2 . 1 Full Trace Events . | . . . . Feedback Events . | . . . . Feedback Blocked . | . . . . Robot Schematics Acquired . | . . . . Robots Built . | . . . . Authchips . | . . . . Time . | . . . . Total Robot Build Rating . | . . . . Part Schematics Acquired . | . . . . Parts Built . | . . . . Authchips . | . . . . Time . | . . . . Total Part Build Rating . | . . . . Part Studies Acquired . | . . . . Parts Repaired . | . . . . Time . | . . . . Parts Recycled . | . . . . Recycled Matter . | . . . . Retrieved Matter . | . . . . Retrieved Components . | . . . . Parts Scanalyzed . | . . . . Part Schematics Acquired . | . . . . Parts Damaged . | . . . . Bothacking | -11 -10 -10 -9 ------------ Run | Yrd Mat Sub Rec Used RIF Installer . | . . . . Robots Hacked . | . . . . Non-combat . | . . . . Combat . | . . . . Robot Hacks Applied . | . . . . Relay Couplers Released . | . . . . Fabnet Peak Effective % . | . . . . Robots Rewired . | . . . . Allies Hacked . | . . . . Hacks Repelled . | . . . . Allies | -11 -10 -10 -9 -------- Run | Yrd Mat Sub Rec Total Allies . | . . . . Largest Group . | . . . . Highest-Rated Group . | . . . . Highest-Rated Ally . | . . . . Total Orders . | . . . . Ally Attacks . | . . . . Total Damage . | . . . . Kills . | . . . . Allies Corrupted . | . . . . Allies Melted . | . . . . Intel | -11 -10 -10 -9 ------- Run | Yrd Mat Sub Rec Active Infowar (turns) 1919 | 14 570 1335 . Seismic 1919 | 14 570 1335 . Robot Analysis Total . | . . . . Derelict Logs Recovered 3 | . . 3 . Drone Launches . | . . . . Drone Recoveries . | . . . . Exploration | -11 -10 -10 -9 ------------- Run | Yrd Mat Sub Rec Turns Passed 3617 | 162 570 2861 24 Spaces Moved 2016 | 85 230 1684 17 Core 20 | 20 . . . Treads 1230 | 65 230 935 . Legs . | . . . . Wheels 766 | . . 749 17 Hover . | . . . . Flight . | . . . . Fastest Speed 50 | 50 160 95 105 Average Speed 138 | 134 160 136 105 Slowest Speed 160 | 160 160 160 105 Overloaded Moves . | . . . . Propulsion Burnouts . | . . . . Robots Hopped . | . . . . Potential Cave-ins . | . . . . Cave-ins Triggered . | . . . . Exploration Rate (%) 36 | 8 45 86 7 Regions Visited 3 Branch Regions 2 Pre-discovered Areas . | . . . . Known Exits Taken . | . . . . Unknown Exits Taken 3 | 1 1 1 . Scrap Searched 3 | . . 3 . Spaces Dug . | . . . . Terrain Destroyed . | . . . . Melee . | . . . . Projectile . | . . . . AOE . | . . . . Terrain Rammed . | . . . . Walls Destroyed . | . . . . Machines Disabled . | . . . . Actions | -11 -10 -10 -9 --------- Run | Yrd Mat Sub Rec Total 2511 | 113 412 1966 20 Wait 205 | . 156 49 . Move 2013 | 84 229 1683 17 Hop . | . . . . Pick Up 42 | 11 8 23 . Fast Attach 4 | . . 4 . Attach 16 | 7 2 7 . Detach . | . . . . Swap 24 | . 2 22 . Drop 23 | . 4 19 . Fire 184 | 11 11 159 3 Melee . | . . . . Ram . | . . . . Kick . | . . . . Crush . | . . . . Escape Stasis . | . . . . Rewire . | . . . . Trap . | . . . . Miscellaneous . | . . . . Route ------- -11/Scrapyard -10/Materials (discovered 4 exits: [*Mat x2] / [*Min] / *Sub) -10/Subcaves (discovered 2 exits: [*Mat] / *Rec) -9/Recycling History --------- Turn | Location | Event 7 | -11/Scrapyard | Discovered new exit (range 15) 163 | -11/Scrapyard | Entered Materials 303 | -10/Materials | Build established: Mutant 331 | -10/Materials | Discovered new exit (range 6) 468 | -10/Materials | Discovered new exit (range 5) 523 | -10/Materials | Discovered new exit (range 3) 716 | -10/Materials | Discovered new exit (range 8) 733 | -10/Materials | Entered Subcaves 734 | -10/Subcaves | Approached by a straggling Scientist 1032 | -10/Subcaves | Visited 4L-MR0's lab 1075 | -10/Subcaves | Found Powered Cannon 1732 | -10/Subcaves | Shifting Twisted Machinery released Battle Cannon 1742 | -10/Subcaves | Shifting Twisted Machinery released Barrage Gun 1852 | -10/Subcaves | A swath of the cavern ceiling suddenly collapsed 2042 | -10/Subcaves | Discovered new exit (range 11) 2169 | -10/Subcaves | A swath of the cavern ceiling suddenly collapsed 2438 | -10/Subcaves | Discovered new exit (range 8) 2582 | -10/Subcaves | Learned Materials security intel 2602 | -10/Subcaves | Learned Materials stockpile data 2688 | -10/Subcaves | Lost 3 parts (2n1u) 2841 | -10/Subcaves | Core integrity fell below 50% 2928 | -10/Subcaves | Shifting Twisted Machinery released Sub. Laser 2960 | -10/Subcaves | Shifting Twisted Machinery released Multitool 2982 | -10/Subcaves | Shifting Twisted Machinery released Mak. Light Armor Plating 2999 | -10/Subcaves | Shifting Twisted Machinery released Barrage Gun 3218 | -10/Subcaves | Core integrity fell below 20% 3280 | -10/Subcaves | Build established: Derelict-Mutant 3594 | -10/Subcaves | Entered Recycling 3618 | -9/Recycling | Destroyed by Y-45 Defender with Heavy Assault Rifle Last Messages --------------- 03339_ Subatomizers dissect the Sub. Optics. 03350_ Dropped Sub. Monowheel. 03351_ Acquired Wheel. 03353_ Dropped Sub. Monowheel. 03354_ Acquired Com. Wheel. 03356_ Dropped Broken Sub. Monowheel. 03357_ Acquired Sub. Monowheel. 03578_ Triggered Piercing Trap. 03578_ Spikes shoot up from the floor. 03578_ Critical hit (Impale). LOCATION=UNKNOWN GOAL=ESCAPE 03598_ Connecting with Terminal... 03598_ Current location identified: Recycling >>Trojan(Skim) Trojan loaded successfully. Testing... Terminal linked with 0 systems. Please expand to 4 more systems! 03612_ Y-45 Defender springs to life. Map ----- +----------------------------------------------------+ | ?????????????????????????????????????????????????? | | ?????????????????????????????????????????????????? | | ?????????????????????????????????????????????????? | | ?????????????????????????????????????????????????? | | ?????????????????????????????????????????????????? | | ?????????????????????????????????????????????????? | | ?????????????????????????????????????????????????? | | ?????????????????????????????????????????????????? | | ?????????????????????????????????????????????????? | | ?????????????????????????????????????????????????? | | ?????????????????????????????????????????????????? | | ?????????????????????????????????????????????????? | | ?????????????????????????????????????????????????? | | ?????????????????????????????????????????????????? | | ?????????????????????????????????????????????????? | | ?????????????????????????????????????????????????? | | ?????????????? #########+#???????????????????????? | | ??????????????? #??????????????????????? | | ????????????????? #??????????????????????? | | ?????????????????? #??????????????????????? | | ??????????????????? #??????????????????????? | | ???????????????????? +??????????????????????? | | ????????????????????? #??????????????????????? | | ??????????????????????# ##?????????????????????? | | ??????????????????????# Y#?????????????????????? | | ??????????????????????# @#??????????????????????? | | ?????????????????????## ##?#####???????????????? | | ?????????????????????# ###"T"#####???????????? | | ?????????????????????# #???????????? | | ?????????????????????+ #???????????? | | ?????????????????????# #???????????? | | ?????????????????????# ##** ######???????????? | | ?????????????????????########***#????????????????? | | ????????????????????????????#####????????????????? | | ?????????????????????????????????????????????????? | | ?????????????????????????????????????????????????? | | ?????????????????????????????????????????????????? | | ?????????????????????????????????????????????????? | | ?????????????????????????????????????????????????? | | ?????????????????????????????????????????????????? | | ?????????????????????????????????????????????????? | | ?????????????????????????????????????????????????? | | ?????????????????????????????????????????????????? | | ?????????????????????????????????????????????????? | | | | | | | | | | | | | +----------------------------------------------------+ Best States ------------- Heat Dissipation 25 Energy Generation 15 Energy Capacity 250 Matter Stores 300 Matter Capacity 300 Sight Range 16 Terrain Scan Density 10 Armor Coverage 150 Evasion (%) 50 Recoil Reduction 2 Item Schematics ----------------- None Robot Schematics ------------------ None Fabricated ------------ Nothing Repaired ---------- Nothing Studied --------- None Alien Tech Used ----------------- None Achievements -------------- None Challenges ------------ None Game ------ Seed SensorSubdwellerSource Manual? 0 Play Time 00:14:34 Cumulative 508.8 hours Start 2025.11.16 @ 19:42:16 End 2025.11.16 @ 20:32:58 Sessions 2 Manual Loads 0 Difficulty Rogue Special Mode None Game No. 686 Rogue 686 Adventurer 0 Explorer 0 Win Type - Total 16 Types 8/0/2/2/1/0/2/1/0/0 Lore% 91 Gallery% 85 Achievement% 67 Wizard Run 0 Options --------- Layout 2 ASCII 0 Keyboard 0 Movement Mouse Keybinds 0 Fullscreen 1 Font 24/Terminus Map View 50x49 Zoom Use 0% Tactical HUD 1 Map Filters NONE Filters NONE Steam 1 RUN: d6a82bda-bf89-4119-96eb-910af2e05cd8